bitfinex/quotes_BTCUSD_20250608
["timestamp","ask_amount","ask_price","bid_price","bid_amount"]
[1749343368198,2.02168438,105650.0,105640.0,0.10931493]
[1749343368409,2.0216845,105650.0,105640.0,0.10931493]
[1749343368609,2.0150387,105650.0,105640.0,0.10931493]
[1749343368816,2.01503872,105650.0,105640.0,0.10931493]
[1749343369024,2.01232908,105650.0,105640.0,0.10931493]
[1749343369842,2.0216102,105650.0,105640.0,0.10931493]
[1749343370193,2.01496533,105650.0,105640.0,0.10931493]
[1749343370413,2.02160772,105650.0,105640.0,0.10931493]
[1749343370621,1.99724315,105650.0,105640.0,0.10931493]
[1749343370824,2.02160772,105650.0,105640.0,0.10931493]
[1749343371043,2.01496284,105650.0,105640.0,0.10931493]
[1749343371229,2.02160727,105650.0,105640.0,0.10931493]
[1749343371473,2.02160561,105650.0,105640.0,0.10931493]
[1749343371820,1.6405613,105650.0,105640.0,0.10931493]
[1749343372038,2.02152561,105650.0,105640.0,0.10931493]
[1749343372247,2.02152563,105650.0,105640.0,0.10931493]
[1749343373318,2.02152573,105650.0,105640.0,0.10931493]
[1749343373764,2.00380749,105650.0,105640.0,0.10931493]
[1749343373987,1.99716315,105650.0,105640.0,0.10931493]
[1749343374222,2.02152573,105650.0,105640.0,0.10931493]
[1749343375217,2.02152593,105650.0,105640.0,0.10931493]
[1749343375427,2.00380754,105650.0,105640.0,0.10931493]
[1749343375619,2.01488154,105650.0,105640.0,0.10931493]
[1749343375842,2.02152593,105650.0,105640.0,0.10931493]
[1749343376633,2.02152643,105650.0,105640.0,0.10931493]
[1749343376835,2.00380795,105650.0,105640.0,0.10931493]
[1749343377077,2.02152743,105650.0,105640.0,0.10931493]
[1749343377306,2.01488263,105650.0,105640.0,0.10931493]
[1749343377508,2.02152743,105650.0,105640.0,0.10931493]
[1749343378610,2.02152883,105650.0,105640.0,0.10931493]
[1749343379102,2.0148835,105650.0,105640.0,0.10931493]
[1749343379308,1.99716315,105650.0,105640.0,0.10931493]
[1749343379710,2.02152859,105650.0,105640.0,0.10931493]
[1749343380476,2.02153053,105650.0,105640.0,0.10931493]
[1749343380669,1.99716315,105650.0,105640.0,0.10931493]
[1749343380868,2.02153126,105650.0,105640.0,0.10931493]
[1749343381264,1.47585126,105650.0,105640.0,0.10931493]
[1749343381516,1.47585124,105650.0,105640.0,0.10931493]
[1749343382182,1.46920806,105650.0,105640.0,0.10931493]
[1749343382383,1.4758549,105650.0,105640.0,0.10931493]
[1749343382589,1.45812999,105650.0,105640.0,0.10931493]
[1749343382804,1.46920808,105650.0,105640.0,0.10931493]
[1749343383026,1.45148315,105650.0,105640.0,0.10931493]
[1749343383229,1.47585493,105650.0,105640.0,0.10931493]
[1749343383648,1.47585739,105650.0,105640.0,0.10931493]
[1749343383871,1.45813,105650.0,105640.0,0.10931493]
[1749343384074,1.47585739,105650.0,105640.0,0.10931493]
[1749343384283,1.45813091,105650.0,105640.0,0.10931493]
[1749343384505,1.47585829,105650.0,105640.0,0.03367912]
[1749343384916,1.47585829,105650.0,105640.0,0.00247912]
[1749343385570,1.47586024,105650.0,105640.0,0.01757912]
[1749343385987,1.45813286,105650.0,105640.0,0.01757912]
[1749343386196,2.02162542,105650.0,105640.0,0.01757912]
[1749343386418,2.00389286,105650.0,105640.0,0.01757912]
[1749343386627,2.02162564,105650.0,105640.0,0.01757912]
[1749343387258,2.00389286,105650.0,105640.0,0.01757912]
[1749343387566,1.99724315,105650.0,105640.0,0.01757912]
[1749343387772,2.0149846,105650.0,105640.0,0.01757912]
[1749343387978,1.6406646,105650.0,105640.0,0.01757912]
[1749343388192,2.02163764,105650.0,105640.0,0.03317912]
[1749343389061,2.00389586,105650.0,105640.0,0.03317912]
[1749343389491,2.02163643,105650.0,105640.0,0.03317912]
[1749343390520,2.02163578,105650.0,105640.0,0.03317912]
[1749343390702,2.00389562,105650.0,105640.0,0.03317912]
[1749343390900,2.02163554,105650.0,105640.0,0.03317912]
[1749343391078,2.01498307,105650.0,105640.0,0.03317912]
[1749343391283,2.02163554,105650.0,105640.0,0.03317912]
[1749343391480,2.01498307,105650.0,105640.0,0.03317912]
[1749343391689,2.02163561,105650.0,105640.0,0.03317912]
[1749343391893,2.02163563,105650.0,105640.0,0.03317912]
[1749343392468,2.02163564,105650.0,105640.0,0.03317912]
[1749343392683,2.02163563,105650.0,105640.0,0.03317912]
[1749343393497,2.03723563,105650.0,105640.0,0.00247912]
[1749343393899,2.03723631,105650.0,105640.0,0.00247912]
[1749343394103,2.03723661,105650.0,105640.0,0.00247912]
[1749343394325,1.99724315,105650.0,105640.0,0.00247912]
[1749343394449,2.02163713,105650.0,105640.0,0.00247912]
[1749343394857,2.02163684,105650.0,105640.0,0.00247912]
[1749343396148,2.03723684,105650.0,105640.0,0.00247912]
[1749343396559,2.02163684,105650.0,105640.0,0.00247912]
[1749343396776,2.00389597,105650.0,105640.0,0.00247912]
[1749343396996,2.02163713,105650.0,105640.0,0.00247912]
[1749343397608,2.0216376,105650.0,105640.0,0.00247912]
[1749343398645,2.0149847,105650.0,105640.0,0.00247912]
[1749343398801,2.02163778,105650.0,105640.0,0.00247912]
[1749343399173,2.00389623,105650.0,105640.0,0.00247912]
[1749343399488,2.02163884,105650.0,105640.0,0.00247912]
[1749343400024,2.03723884,105650.0,105640.0,0.00247912]
[1749343400248,2.01284315,105650.0,105640.0,0.00247912]
[1749343400452,2.021639,105650.0,105640.0,0.00247912]
[1749343400656,2.0149856,105650.0,105640.0,0.00247912]
[1749343400858,2.02163902,105650.0,105640.0,0.00247912]
[1749343401087,2.05353902,105650.0,105640.0,0.00247912]
[1749343401503,2.05353931,105650.0,105640.0,0.00247912]
[1749343401675,2.05353928,105650.0,105640.0,0.00247912]
[1749343401877,2.05353938,105650.0,105640.0,0.00247912]
[1749343402109,2.0535394,105650.0,105640.0,0.00247912]
[1749343403310,2.149939,105650.0,105640.0,0.00247912]
[1749343403784,2.1499393,105650.0,105640.0,0.00247912]
[1749343403963,2.14993929,105650.0,105640.0,0.00247912]
[1749343404374,2.1499384,105650.0,105640.0,0.00247912]
[1749343404960,2.14993808,105650.0,105640.0,0.00247912]
[1749343405191,2.13219594,105650.0,105640.0,0.00247912]
[1749343405392,2.14993806,105650.0,105640.0,0.00247912]
[1749343405742,2.14993807,105650.0,105640.0,0.00247912]
[1749343405872,2.14993806,105650.0,105640.0,0.00247912]
[1749343406878,2.14993762,105650.0,105640.0,0.00247912]
[1749343407080,2.14993761,105650.0,105640.0,0.00247912]
[1749343407288,2.14993759,105650.0,105640.0,0.00247912]
[1749343407495,2.14328442,105650.0,105640.0,0.00247912]
[1749343407701,2.14993759,105650.0,105640.0,0.00247912]
[1749343408332,2.14993825,105650.0,105640.0,0.00247912]
[1749343408538,2.13219553,105650.0,105640.0,0.00247912]
[1749343408943,2.14993638,105650.0,105640.0,0.00247912]
[1749343409990,2.14993537,105650.0,105640.0,0.00247912]
[1749343410399,2.14993552,105650.0,105640.0,0.00247912]
[1749343411827,2.14327942,105650.0,105640.0,0.00247912]
[1749343412029,2.14993067,105650.0,105640.0,0.00247912]
[1749343412241,2.14993067,105650.0,105640.0,0.00212451]
[1749343412645,2.13219391,105650.0,105640.0,0.00212451]
[1749343413524,2.12554263,105650.0,105640.0,0.00212451]
[1749343413668,2.13219385,105650.0,105640.0,0.00212451]
[1749343414976,2.12554263,105650.0,105640.0,0.00212451]
[1749343415397,2.132193,105650.0,105640.0,0.00212451]
[1749343415596,2.13219241,105650.0,105640.0,0.00212451]
[1749343418560,2.13219191,105650.0,105640.0,0.00212451]
[1749343419370,2.13219172,105650.0,105640.0,0.00212451]
[1749343420430,2.13219174,105650.0,105640.0,0.00212451]
[1749343421652,2.12554263,105650.0,105640.0,0.00212451]
[1749343421855,2.13219167,105650.0,105640.0,0.00212451]
[1749343422840,2.13219179,105650.0,105640.0,0.00212451]
[1749343423303,2.12554263,105650.0,105640.0,0.00212451]
[1749343423502,2.13219179,105650.0,105640.0,0.00212451]
[1749343423646,2.12554263,105650.0,105640.0,0.00212451]
[1749343423850,2.13219179,105650.0,105640.0,0.00212451]
[1749343424665,2.12554263,105650.0,105640.0,0.00212451]
[1749343424870,2.1321921,105650.0,105640.0,0.00212451]
[1749343425096,2.12554263,105650.0,105640.0,0.00212451]
[1749343425332,2.1321921,105650.0,105640.0,0.00212451]
[1749343425457,2.12554263,105650.0,105640.0,0.00212451]
[1749343425670,2.1321921,105650.0,105640.0,0.00212451]
[1749343426865,2.13219203,105650.0,105640.0,0.00212451]
[1749343427067,2.12554263,105650.0,105640.0,0.00212451]
[1749343427207,2.13219204,105650.0,105640.0,0.00212451]
[1749343428439,2.13219201,105650.0,105640.0,0.00212451]
[1749343428855,2.12554263,105650.0,105640.0,0.00212451]
[1749343429431,2.13219201,105650.0,105640.0,0.00212451]
[1749343430037,2.13219287,105650.0,105640.0,0.00212451]
[1749343431359,2.13319287,105650.0,105640.0,0.00212451]
[1749343431789,2.13319354,105650.0,105640.0,0.00212451]
[1749343432195,2.13419354,105650.0,105640.0,0.00212451]
[1749343433269,2.12754263,105650.0,105640.0,0.00212451]
[1749343433588,2.13419364,105650.0,105640.0,0.00212451]
[1749343434011,2.12754263,105650.0,105640.0,0.00212451]
[1749343434291,2.13419402,105650.0,105640.0,0.00212451]
[1749343434495,2.13419392,105650.0,105640.0,0.00212451]
[1749343435291,2.13419401,105650.0,105640.0,0.00212451]
[1749343435497,2.12754263,105650.0,105640.0,0.00212451]
[1749343435644,2.13419402,105650.0,105640.0,0.00212451]
[1749343435845,2.13419401,105650.0,105640.0,0.00212451]
[1749343436453,2.12754263,105650.0,105640.0,0.00212451]
[1749343436664,2.1341952,105650.0,105640.0,0.00212451]
[1749343436855,2.12754263,105650.0,105640.0,0.00212451]
[1749343437255,2.1341952,105650.0,105640.0,0.00212451]
[1749343437754,2.12754263,105650.0,105640.0,0.00212451]
[1749343438014,2.1341952,105650.0,105640.0,0.00212451]
[1749343438238,2.13419527,105650.0,105640.0,0.00212451]
[1749343439230,2.12754263,105650.0,105640.0,0.00212451]
[1749343439659,2.13419643,105650.0,105640.0,0.00212451]
[1749343440277,2.11789645,105650.0,105640.0,0.00212451]
[1749343440704,2.11789646,105650.0,105640.0,0.00212451]
[1749343440907,2.11789692,105650.0,105640.0,0.00212451]
[1749343442419,2.11124263,105650.0,105640.0,0.00212451]
[1749343442629,2.11789712,105650.0,105640.0,0.00212451]
[1749343443466,2.11789705,105650.0,105640.0,0.00212451]
[1749343444339,2.11789704,105650.0,105640.0,0.00212451]
[1749343447050,2.13399697,105650.0,105640.0,0.00212451]
[1749343448523,2.13399544,105650.0,105640.0,0.00212451]
[1749343448728,2.13399526,105650.0,105640.0,0.00212451]
[1749343449153,2.11789526,105650.0,105640.0,0.00212451]
[1749343449751,2.11789522,105650.0,105640.0,0.00212451]
[1749343450390,2.11789562,105650.0,105640.0,0.00212451]
[1749343450753,2.11789563,105650.0,105640.0,0.00212451]
[1749343452778,2.11789562,105650.0,105640.0,0.00212451]
[1749343452979,1.72797562,105650.0,105640.0,0.00212451]
[1749343453183,2.10229562,105650.0,105640.0,0.03352451]
[1749343453427,2.10229586,105650.0,105640.0,0.10916032]
[1749343453663,2.10229587,105650.0,105640.0,0.10916032]
[1749343453853,2.00589639,105650.0,105640.0,0.30794865]
[1749343454118,2.00589639,105650.0,105640.0,0.31741467]
[1749343454316,1.99643163,105650.0,105640.0,0.31741467]
[1749343454520,1.9869666,105650.0,105640.0,0.10916032]
[1749343455261,1.98031336,105650.0,105640.0,0.10916032]
[1749343455769,1.98696686,105650.0,105640.0,0.10916032]
[1749343456374,1.98696207,105650.0,105640.0,0.10916032]
[1749343456774,1.98031336,105650.0,105640.0,0.10916032]
[1749343456970,1.98696185,105650.0,105640.0,0.10916032]
[1749343457216,1.98031336,105650.0,105640.0,0.10916032]
[1749343457422,1.98696185,105650.0,105640.0,0.10916032]
[1749343457823,1.98696185,105650.0,105640.0,0.03352451]
[1749343458247,1.98031336,105650.0,105640.0,0.03352451]
[1749343458587,1.98696007,105650.0,105640.0,0.03352451]
[1749343459016,1.98031336,105650.0,105640.0,0.03352451]
[1749343459166,1.98696021,105650.0,105640.0,0.03352451]
[1749343460132,1.98696021,105650.0,105640.0,0.00212451]
[1749343461042,1.98695972,105650.0,105640.0,0.00212451]
[1749343461747,1.98695955,105650.0,105640.0,0.00212451]
[1749343462441,1.98031336,105650.0,105640.0,0.00212451]
[1749343462656,1.98695967,105650.0,105640.0,0.00212451]
[1749343463893,1.98695953,105650.0,105640.0,0.00212451]
[1749343464886,1.98695961,105650.0,105640.0,0.00212451]
[1749343465360,1.98031336,105650.0,105640.0,0.00212451]
[1749343465573,1.98695961,105650.0,105640.0,0.00212451]
[1749343467102,1.98695982,105650.0,105640.0,0.00212451]
[1749343468329,2.0833593,105650.0,105640.0,0.00212451]
[1749343468545,2.07671284,105650.0,105640.0,0.00212451]
[1749343468746,2.08335927,105650.0,105640.0,0.00212451]
[1749343469179,2.08335928,105650.0,105640.0,0.00212451]
[1749343469340,2.08335953,105650.0,105640.0,0.00212451]
[1749343469708,2.07671284,105650.0,105640.0,0.00212451]
[1749343469965,2.08335952,105650.0,105640.0,0.00212451]
[1749343470988,2.07671284,105650.0,105640.0,0.00212451]
[1749343471188,2.08335952,105650.0,105640.0,0.00212451]
[1749343471364,2.09885952,105650.0,105640.0,0.00212451]
[1749343471568,2.11435952,105650.0,105640.0,0.00212451]
[1749343472607,2.11435967,105650.0,105640.0,0.00212451]
[1749343472857,2.09885967,105650.0,105640.0,0.00212451]
[1749343473709,2.09886,105650.0,105640.0,0.00212451]
[1749343475560,2.09221284,105650.0,105640.0,0.00212451]
[1749343475780,2.09886,105650.0,105640.0,0.00212451]
[1749343476355,2.08336,105650.0,105640.0,0.00212451]
[1749343476936,2.07671284,105650.0,105640.0,0.00212451]
[1749343477139,2.08336034,105650.0,105640.0,0.00212451]
[1749343478510,2.08336073,105650.0,105640.0,0.00212451]
[1749343478911,2.07671284,105650.0,105640.0,0.00212451]
[1749343479112,2.08336073,105650.0,105640.0,0.00212451]
[1749343479450,2.08336112,105650.0,105640.0,0.00187546]
[1749343480358,2.08336113,105650.0,105640.0,0.00187546]
[1749343480558,2.08336114,105650.0,105640.0,0.00187546]
[1749343481083,2.08336122,105650.0,105640.0,0.00187546]
[1749343481904,2.07671284,105650.0,105640.0,0.00187546]
[1749343482322,2.08336168,105650.0,105640.0,0.00187546]
[1749343483162,2.08336174,105650.0,105640.0,0.00187546]
[1749343483576,2.08336177,105650.0,105640.0,0.00187546]
[1749343484157,2.07671284,105650.0,105640.0,0.00187546]
[1749343484353,2.08336179,105650.0,105640.0,0.00187546]
[1749343484556,2.08336185,105650.0,105640.0,0.00187546]
[1749343485755,2.07671284,105650.0,105640.0,0.00187546]
[1749343486014,2.08336259,105650.0,105640.0,0.00187546]
[1749343487097,2.07671284,105650.0,105640.0,0.00187546]
[1749343487299,2.08336266,105650.0,105640.0,0.00187546]
[1749343487932,2.08336403,105650.0,105640.0,0.00187546]
[1749343488707,2.08336407,105650.0,105640.0,0.00187546]
[1749343490704,2.07671284,105650.0,105640.0,0.00187546]
[1749343490913,2.08336407,105650.0,105640.0,0.00187546]
[1749343491125,2.08336418,105650.0,105640.0,0.00187546]
[1749343491998,2.07671284,105650.0,105640.0,0.00187546]
[1749343492205,2.08336418,105650.0,105640.0,0.00187546]
[1749343492615,2.07671284,105650.0,105640.0,0.00187546]
[1749343492822,2.08336428,105650.0,105640.0,0.00187546]
[1749343493025,2.07671284,105650.0,105640.0,0.00187546]
[1749343493331,2.08336428,105650.0,105640.0,0.00187546]
[1749343494341,2.07671284,105650.0,105640.0,0.00187546]
[1749343494547,2.08336445,105650.0,105640.0,0.00187546]
[1749343494964,2.07671284,105650.0,105640.0,0.00187546]
[1749343495214,2.08336445,105650.0,105640.0,0.00187546]
[1749343495825,2.07671284,105650.0,105640.0,0.00187546]
[1749343496029,2.08336445,105650.0,105640.0,0.00187546]
[1749343497097,2.08336484,105650.0,105640.0,0.00187546]
[1749343497723,2.07671284,105650.0,105640.0,0.00187546]
[1749343497943,2.08336484,105650.0,105640.0,0.00187546]
[1749343498695,2.11636484,105650.0,105640.0,0.00187546]
[1749343499116,2.10971284,105650.0,105640.0,0.00187546]
[1749343499515,2.11636529,105650.0,105640.0,0.00187546]
[1749343500368,2.10971284,105650.0,105640.0,0.00187546]
[1749343500677,2.11636529,105650.0,105640.0,0.00187546]
[1749343501420,2.10971284,105650.0,105640.0,0.00187546]
[1749343501612,2.11636652,105650.0,105640.0,0.00187546]
[1749343502214,2.10971284,105650.0,105640.0,0.00187546]
[1749343502419,2.11636655,105650.0,105640.0,0.00187546]
[1749343502683,2.10971284,105650.0,105640.0,0.00187546]
[1749343502889,2.11636657,105650.0,105640.0,0.00187546]
[1749343503446,2.1163666,105650.0,105640.0,0.00187546]
[1749343503732,2.10971284,105650.0,105640.0,0.00187546]
[1749343503935,2.1163666,105650.0,105640.0,0.00187546]
[1749343504137,2.10971284,105650.0,105640.0,0.00187546]
[1749343504501,2.1163666,105650.0,105640.0,0.00187546]
[1749343504702,2.10971284,105650.0,105640.0,0.00187546]
[1749343505005,2.1163666,105650.0,105640.0,0.00187546]
[1749343505267,2.10971284,105650.0,105640.0,0.00187546]
[1749343505482,2.1163666,105650.0,105640.0,0.00187546]
[1749343505713,2.14227531,105650.0,105640.0,0.00187546]
[1749343505912,2.10971284,105650.0,105640.0,0.00187546]
[1749343506120,2.11636657,105650.0,105640.0,0.00187546]
[1749343506348,2.10971284,105650.0,105640.0,0.00187546]
[1749343506536,2.11636655,105650.0,105640.0,0.00187546]
[1749343507027,2.10971284,105650.0,105640.0,0.00187546]
[1749343507245,2.11636621,105650.0,105640.0,0.00187546]
[1749343507434,2.11636617,105650.0,105640.0,0.00187546]
[1749343507760,2.11636613,105650.0,105640.0,0.00187546]
[1749343508808,2.116366,105650.0,105640.0,0.00187546]
[1749343510259,2.10971284,105650.0,105640.0,0.00187546]
[1749343510499,2.116366,105650.0,105640.0,0.00187546]
[1749343510693,2.10971284,105650.0,105640.0,0.00187546]
[1749343510919,2.11636596,105650.0,105640.0,0.00187546]
[1749343511671,2.10971284,105650.0,105640.0,0.00187546]
[1749343511882,2.11636592,105650.0,105640.0,0.00187546]
[1749343512469,2.11636591,105650.0,105640.0,0.00187546]
[1749343512753,2.11636587,105650.0,105640.0,0.00187546]
[1749343513877,2.11636583,105650.0,105640.0,0.00187546]
[1749343514308,2.10971284,105650.0,105640.0,0.00187546]
[1749343514664,2.11636583,105650.0,105640.0,0.00187546]
[1749343515456,2.11636578,105650.0,105640.0,0.00187546]
[1749343515891,2.10971284,105650.0,105640.0,0.00187546]
[1749343516091,2.11636578,105650.0,105640.0,0.00187546]
[1749343516256,2.11636576,105650.0,105640.0,0.00187546]
[1749343516470,2.08328576,105650.0,105640.0,0.00187546]
[1749343516963,1.70904576,105650.0,105640.0,0.00187546]
[1749343517123,2.08320587,105650.0,105640.0,0.03497546]
[1749343517317,1.70904587,105650.0,105640.0,0.03497546]
[1749343517527,2.08320589,105650.0,105640.0,0.03497546]
[1749343518955,2.07655284,105650.0,105640.0,0.03497546]
[1749343519158,2.08320518,105650.0,105640.0,0.03497546]
[1749343520085,2.07655284,105650.0,105640.0,0.03497546]
[1749343520405,2.08320517,105650.0,105640.0,0.03497546]
[1749343520612,2.07655284,105650.0,105640.0,0.03497546]
[1749343520828,2.10094475,105650.0,105640.0,0.03497546]
[1749343521045,2.10094285,105650.0,105640.0,0.03497546]
[1749343522865,2.10094208,105650.0,105640.0,0.03497546]
[1749343523734,2.10094108,105650.0,105640.0,0.03497546]
[1749343523928,2.09428974,105650.0,105640.0,0.03497546]
[1749343524284,2.10094107,105650.0,105640.0,0.03497546]
[1749343524469,2.10094107,105650.0,105640.0,0.01847546]
[1749343524875,2.10094067,105650.0,105640.0,0.01847546]
[1749343525454,2.09428934,105650.0,105640.0,0.01847546]
[1749343525663,2.10094052,105650.0,105640.0,0.01847546]
[1749343526039,2.10094054,105650.0,105640.0,0.01847546]
[1749343526237,2.09428935,105650.0,105640.0,0.01847546]
[1749343526493,2.0832039,105650.0,105640.0,0.01847546]
[1749343526695,2.10094007,105650.0,105640.0,0.01847546]
[1749343527964,2.10093956,105650.0,105640.0,0.01847546]
[1749343528463,2.10093957,105650.0,105640.0,0.01847546]
[1749343528665,2.10093957,105650.0,105640.0,0.00187546]
[1749343529408,2.10093957,105650.0,105640.0,0.01797546]
[1749343531558,2.10093927,105650.0,105640.0,0.01797546]
[1749343532746,2.10093927,105650.0,105640.0,0.03457546]
[1749343533191,2.10093914,105650.0,105640.0,0.03457546]
[1749343533402,2.10093908,105650.0,105640.0,0.03457546]
[1749343534814,2.10093863,105650.0,105640.0,0.03457546]
[1749343535211,2.08320363,105650.0,105640.0,0.00187546]
[1749343535416,2.11440363,105650.0,105640.0,0.00187546]
[1749343535606,2.10775284,105650.0,105640.0,0.00187546]
[1749343537195,2.09195284,105650.0,105640.0,0.00187546]
[1749343542694,2.11633908,105650.0,105640.0,0.00187546]
[1749343543319,2.10968864,105650.0,105640.0,0.00187546]
[1749343543519,2.10968962,105650.0,105640.0,0.00187546]
[1749343544181,2.09428962,105650.0,105640.0,0.00187546]
[1749343544936,2.09428927,105650.0,105640.0,0.00187546]
[1749343546435,2.07655284,105650.0,105640.0,0.00187546]
[1749343546632,2.09428975,105650.0,105640.0,0.00187546]
[1749343547589,2.09428957,105650.0,105640.0,0.00187546]
[1749343548378,2.07655284,105650.0,105640.0,0.00187546]
[1749343548594,2.0942892,105650.0,105640.0,0.00187546]
[1749343550137,2.09428919,105650.0,105640.0,0.00187546]
[1749343551496,2.09428912,105650.0,105640.0,0.00187546]
[1749343552876,2.09428924,105650.0,105640.0,0.00187546]
[1749343553655,2.09428906,105650.0,105640.0,0.00187546]
[1749343553857,2.07655284,105650.0,105640.0,0.00187546]
[1749343554066,2.0942891,105650.0,105640.0,0.00187546]
[1749343554286,2.07655284,105650.0,105640.0,0.00187546]
[1749343554538,2.09428876,105650.0,105640.0,0.00187546]
[1749343555233,2.09428864,105650.0,105640.0,0.00187546]
[1749343555730,2.0942882,105650.0,105640.0,0.00187546]
[1749343555971,2.0942885,105650.0,105640.0,0.00187546]
[1749343556172,2.07655284,105650.0,105640.0,0.00187546]
[1749343556372,2.0942885,105650.0,105640.0,0.00187546]
[1749343557192,2.09428883,105650.0,105640.0,0.00187546]
[1749343557537,2.07655284,105650.0,105640.0,0.00187546]
[1749343557737,2.09428883,105650.0,105640.0,0.00187546]
[1749343558779,2.09428925,105650.0,105640.0,0.00187546]
[1749343559872,2.09428955,105650.0,105640.0,0.00187546]
[1749343562346,2.09428953,105650.0,105640.0,0.00187546]
[1749343562739,2.09428962,105650.0,105640.0,0.00187546]
[1749343563185,2.10968962,105650.0,105640.0,0.00187546]
[1749343564116,2.10968988,105650.0,105640.0,0.00187546]
[1749343564804,2.09195284,105650.0,105640.0,0.00187546]
[1749343565246,2.10969104,105650.0,105640.0,0.00187546]
[1749343565463,2.10969102,105650.0,105640.0,0.00187546]
[1749343566124,2.09195284,105650.0,105640.0,0.00187546]
[1749343566351,2.10969102,105650.0,105640.0,0.00187546]
[1749343567812,2.10969121,105650.0,105640.0,0.00187546]
[1749343568234,2.09195284,105650.0,105640.0,0.00187546]
[1749343568644,2.1096912,105650.0,105640.0,0.00187546]
[1749343569636,2.10969146,105650.0,105640.0,0.00187546]
[1749343569821,2.10969145,105650.0,105640.0,0.00187546]
[1749343570168,2.10969141,105650.0,105640.0,0.00187546]
[1749343570378,2.10969142,105650.0,105640.0,0.00187546]
[1749343571371,2.09195284,105650.0,105640.0,0.00187546]
[1749343571576,2.10969157,105650.0,105640.0,0.00187546]
[1749343572231,2.09195284,105650.0,105640.0,0.00187546]
[1749343572435,2.10969148,105650.0,105640.0,0.00187546]
[1749343573056,2.10969147,105650.0,105640.0,0.00187546]
[1749343573307,2.10969148,105650.0,105640.0,0.00187546]
[1749343573511,2.09195284,105650.0,105640.0,0.00187546]
[1749343573685,2.10969148,105650.0,105640.0,0.00187546]
[1749343573892,2.10969213,105650.0,105640.0,0.00187546]
[1749343574730,2.10969235,105650.0,105640.0,0.00187546]
[1749343575566,2.09195284,105650.0,105640.0,0.00187546]
[1749343575771,2.10969221,105650.0,105640.0,0.00187546]
[1749343576510,2.109692,105650.0,105640.0,0.00187546]
[1749343576681,2.09195284,105650.0,105640.0,0.00187546]
[1749343576902,2.10969235,105650.0,105640.0,0.00187546]
[1749343577366,2.10969222,105650.0,105640.0,0.00187546]
[1749343578267,2.10969221,105650.0,105640.0,0.00187546]
[1749343578510,2.10795284,105650.0,105640.0,0.00187546]
[1749343578944,2.12569189,105650.0,105640.0,0.00187546]
[1749343579157,2.10795284,105650.0,105640.0,0.00187546]
[1749343579342,2.12569175,105650.0,105640.0,0.00187546]
[1749343580105,2.12569023,105650.0,105640.0,0.00187546]
[1749343580645,2.10795284,105650.0,105640.0,0.00187546]
[1749343580852,2.12568995,105650.0,105640.0,0.00187546]
[1749343581277,2.12568993,105650.0,105640.0,0.00187546]
[1749343581399,2.12568992,105650.0,105640.0,0.00187546]
[1749343582658,2.12568961,105650.0,105640.0,0.00187546]
[1749343583206,2.10795284,105650.0,105640.0,0.00187546]
[1749343583415,2.12569013,105650.0,105640.0,0.00187546]
[1749343583871,2.10795284,105650.0,105640.0,0.00187546]
[1749343584630,2.12569073,105650.0,105640.0,0.00187546]
[1749343585057,2.10795284,105650.0,105640.0,0.00187546]
[1749343585237,2.12569005,105650.0,105640.0,0.00187546]
[1749343585439,2.12569002,105650.0,105640.0,0.00187546]
[1749343585902,2.10795284,105650.0,105640.0,0.00187546]
[1749343586105,2.12568995,105650.0,105640.0,0.00187546]
[1749343586310,2.12568994,105650.0,105640.0,0.00187546]
[1749343587073,2.12568985,105650.0,105640.0,0.00187546]
[1749343587290,2.10795284,105650.0,105640.0,0.00187546]
[1749343587736,2.12568978,105650.0,105640.0,0.00187546]
[1749343588441,2.12568924,105650.0,105640.0,0.00187546]
[1749343588667,2.14023009,105650.0,105640.0,0.00187546]
[1749343588892,2.12249369,105650.0,105640.0,0.00187546]
[1749343589121,2.14022986,105650.0,105640.0,0.00187546]
[1749343589357,2.12249369,105650.0,105640.0,0.00187546]
[1749343589613,2.14022973,105650.0,105640.0,0.00187546]
[1749343589827,6.26503273,105650.0,105640.0,0.00187546]
[1749343590248,6.26503284,105650.0,105640.0,0.00187546]
[1749343590607,6.26503283,105650.0,105640.0,0.00187546]
[1749343590808,6.24729669,105650.0,105640.0,0.00187546]
[1749343591214,6.26503271,105650.0,105640.0,0.00187546]
[1749343591420,6.2650327,105650.0,105640.0,0.00187546]
[1749343591846,6.27168185,105650.0,105640.0,0.00187546]
[1749343592213,6.271677,105650.0,105640.0,0.00187546]
[1749343592414,6.26502783,105650.0,105640.0,0.00187546]
[1749343592611,6.25394586,105650.0,105640.0,0.00187546]
[1749343592833,6.26502773,105650.0,105640.0,0.00187546]
[1749343593035,6.27167703,105650.0,105640.0,0.00187546]
[1749343593242,6.26502785,105650.0,105640.0,0.00187546]
[1749343593492,6.27167703,105650.0,105640.0,0.00187546]
[1749343593724,6.27167715,105650.0,105640.0,0.00187546]
[1749343593936,0.54827351,105630.0,105620.0,0.10604839]
[1749343594151,1.07469053,105630.0,105620.0,0.10618437]
[1749343594349,1.07469049,105630.0,105620.0,0.07777179]
[1749343594610,1.09649892,105630.0,105620.0,0.07777179]
[1749343594838,1.10314726,105630.0,105620.0,0.07777179]
[1749343595115,1.11768786,105630.0,105620.0,0.07877179]
[1749343595332,1.11767879,105630.0,105620.0,0.07877179]
[1749343595701,1.11765429,105630.0,105620.0,0.07877179]
[1749343595897,5.24245709,105630.0,105620.0,0.00313598]
[1749343596101,5.24245668,105630.0,105620.0,0.00313598]
[1749343596278,5.24245648,105630.0,105620.0,0.00313598]
[1749343596485,5.24245644,105630.0,105620.0,0.00313598]
[1749343597453,5.22474645,105630.0,105620.0,0.00413598]
[1749343597663,5.24243358,105630.0,105620.0,0.00413598]
[1749343597882,5.2424336,105630.0,105620.0,0.00413598]
[1749343598087,5.24243361,105630.0,105620.0,0.00413598]
[1749343598530,5.24243361,105630.0,105620.0,0.00313598]
[1749343598731,5.24243063,105630.0,105620.0,0.00213598]
[1749343599146,5.23579162,105630.0,105620.0,0.00213598]
[1749343599357,5.24242078,105630.0,105620.0,0.00213598]
[1749343599561,5.24242077,105630.0,105620.0,0.00213598]
[1749343599710,5.24242069,105630.0,105620.0,0.00213598]
[1749343600673,5.23579155,105630.0,105620.0,0.00213598]
[1749343600881,5.2397872,105630.0,105620.0,0.00213598]
[1749343601090,5.24441439,105630.0,105620.0,0.00213598]
[1749343601289,5.24641362,105630.0,105620.0,0.00213598]
[1749343601493,5.22211384,105630.0,105620.0,0.00213598]
[1749343601670,5.24641361,105630.0,105620.0,0.00213598]
[1749343602758,5.22211384,105630.0,105620.0,0.00213598]
[1749343602978,5.22874103,105630.0,105620.0,0.00213598]
[1749343603203,5.24641355,105630.0,105620.0,0.00213598]
[1749343603424,5.228741,105630.0,105620.0,0.00213598]
[1749343603660,5.24641342,105630.0,105620.0,0.00213598]
[1749343604333,5.23978464,105630.0,105620.0,0.00213598]
[1749343604579,5.24641121,105630.0,105620.0,0.00213598]
[1749343604822,5.2287404,105630.0,105620.0,0.00213598]
[1749343605024,5.23978469,105630.0,105620.0,0.00213598]
[1749343605192,5.24641125,105630.0,105620.0,0.00213598]
[1749343605633,5.24641092,105630.0,105620.0,0.00213598]
[1749343605983,5.24641148,105630.0,105620.0,0.00213598]
[1749343606195,5.24641329,105630.0,105620.0,0.00213598]
[1749343606396,5.22874097,105630.0,105620.0,0.00213598]